[Event "*** SCC Grand Prix: Titled Tuesday Blitz"]
[Site "Chess.com"]
[Date "2020.08.25"]
[Round "2"]
[White "Schachmalanders"]
[Black "AlphaHero0"]
[Result "0-1"]
[WhiteElo "2338"]
[BlackElo "1955"]
[TimeControl "180+1"]
[EndTime "10:19:45 PDT"]
[Termination "AlphaHero0 won by checkmate"]

1. e4 {[%clk 0:03:00]} 1... Nc6 {[%clk 0:03:00.1]} 2. Nc3 {[%clk 0:02:54.1]}
2... e5 {[%clk 0:02:59.7]} 3. Nf3 {[%clk 0:02:53.5]} 3... Nf6 {[%clk 0:02:59.4]}
4. d4 {[%clk 0:02:53.9]} 4... exd4 {[%clk 0:02:57.3]} 5. Nxd4 {[%clk 0:02:54.8]}
5... Bb4 {[%clk 0:02:56.9]} 6. Nxc6 {[%clk 0:02:55.1]} 6... bxc6 {[%clk
0:02:57.8]} 7. Bd3 {[%clk 0:02:55.7]} 7... d5 {[%clk 0:02:57.8]} 8. exd5 {[%clk
0:02:56.6]} 8... cxd5 {[%clk 0:02:58.6]} 9. O-O {[%clk 0:02:56.6]} 9... O-O
{[%clk 0:02:59.1]} 10. h3 {[%clk 0:02:57.2]} 10... h6 {[%clk 0:02:56.3]} 11. Qf3
{[%clk 0:02:57]} 11... c6 {[%clk 0:02:36.6]} 12. Bf4 {[%clk 0:02:55.2]} 12...
Be6 {[%clk 0:02:18.5]} 13. Ne2 {[%clk 0:02:54.6]} 13... Be7 {[%clk 0:02:16.6]}
14. Rfe1 {[%clk 0:02:51.5]} 14... c5 {[%clk 0:01:52.2]} 15. b3 {[%clk
0:02:42.9]} 15... c4 {[%clk 0:01:43.7]} 16. bxc4 {[%clk 0:02:41.7]} 16... dxc4
{[%clk 0:01:44.6]} 17. Be4 {[%clk 0:02:38.4]} 17... Nxe4 {[%clk 0:01:42.7]} 18.
Qxe4 {[%clk 0:02:39.3]} 18... Bf6 {[%clk 0:01:32.7]} 19. c3 {[%clk 0:02:38.4]}
19... Bd5 {[%clk 0:01:12.5]} 20. Qc2 {[%clk 0:02:37.9]} 20... Qa5 {[%clk
0:00:54.5]} 21. Nd4 {[%clk 0:02:31.9]} 21... Rfe8 {[%clk 0:00:51.1]} 22. Rab1
{[%clk 0:02:22]} 22... Rxe1+ {[%clk 0:00:43.3]} 23. Rxe1 {[%clk 0:02:22.9]}
23... Bxd4 {[%clk 0:00:42.2]} 24. Rd1 {[%clk 0:02:13.9]} 24... Bf6 {[%clk
0:00:39.9]} 25. Qf5 {[%clk 0:02:12.5]} 25... Rd8 {[%clk 0:00:37.6]} 26. Be3
{[%clk 0:02:01.8]} 26... Bxc3 {[%clk 0:00:26.6]} 27. Bf4 {[%clk 0:01:41.2]}
27... g6 {[%clk 0:00:25.8]} 28. Qg4 {[%clk 0:01:37.7]} 28... Bg7 {[%clk
0:00:24.1]} 29. Qg3 {[%clk 0:01:36.6]} 29... Be6 {[%clk 0:00:23.7]} 30. Rf1
{[%clk 0:01:34.7]} 30... Qxa2 {[%clk 0:00:20.7]} 31. Bc7 {[%clk 0:01:34.9]}
31... Rd7 {[%clk 0:00:20.4]} 32. Be5 {[%clk 0:01:34.4]} 32... c3 {[%clk
0:00:19.4]} 33. Bxg7 {[%clk 0:01:34.2]} 33... Kxg7 {[%clk 0:00:19.1]} 34. Qe5+
{[%clk 0:01:34.8]} 34... Kg8 {[%clk 0:00:18.3]} 35. Qxc3 {[%clk 0:01:35.7]}
35... Qc4 {[%clk 0:00:18]} 36. Qe5 {[%clk 0:01:32.5]} 36... Qd5 {[%clk
0:00:17.1]} 37. Qb8+ {[%clk 0:01:31.4]} 37... Kg7 {[%clk 0:00:16.5]} 38. Re1
{[%clk 0:01:30.5]} 38... Qg5 {[%clk 0:00:08.9]} 39. Qb2+ {[%clk 0:01:29]} 39...
Qf6 {[%clk 0:00:08]} 40. Qb8 {[%clk 0:01:28.5]} 40... Qf5 {[%clk 0:00:04.7]} 41.
Qb2+ {[%clk 0:01:27]} 41... Qf6 {[%clk 0:00:04.9]} 42. Qb8 {[%clk 0:01:26.9]}
42... Qg5 {[%clk 0:00:03.6]} 43. Re3 {[%clk 0:01:24.7]} 43... Kh7 {[%clk
0:00:03.5]} 44. Rf3 {[%clk 0:01:24]} 44... Kg7 {[%clk 0:00:02.7]} 45. Kh2 {[%clk
0:01:24.2]} 45... Qc1 {[%clk 0:00:02.5]} 46. Qb4 {[%clk 0:01:20.3]} 46... Qc7+
{[%clk 0:00:03.4]} 47. g3 {[%clk 0:01:18.8]} 47... Qc6 {[%clk 0:00:02.6]} 48.
Qb2+ {[%clk 0:01:16.8]} 48... Kg8 {[%clk 0:00:02.6]} 49. Re3 {[%clk 0:01:17.5]}
49... Qd5 {[%clk 0:00:01.3]} 50. Rc3 {[%clk 0:01:14.8]} 50... Qd4 {[%clk
0:00:02.2]} 51. Rc8+ {[%clk 0:01:14.6]} 51... Kg7 {[%clk 0:00:02.2]} 52. Qc2
{[%clk 0:01:08.3]} 52... Bf5 {[%clk 0:00:01.8]} 53. Qe2 {[%clk 0:01:07.3]} 53...
Rb7 {[%clk 0:00:01.3]} 54. g4 {[%clk 0:00:58.5]} 54... Rb2 {[%clk 0:00:02.2]}
55. Qe3 {[%clk 0:00:57.6]} 55... Qxe3 {[%clk 0:00:02.1]} 56. Rc2 {[%clk
0:00:56.2]} 56... Qxf2+ {[%clk 0:00:03]} 57. Rxf2 {[%clk 0:00:55.8]} 57... Rxf2+
{[%clk 0:00:02.9]} 58. Kg3 {[%clk 0:00:56.7]} 58... Rb2 {[%clk 0:00:02.9]} 59.
Kf4 {[%clk 0:00:57.6]} 59... a5 {[%clk 0:00:02.9]} 60. Kg3 {[%clk 0:00:58.5]}
60... a4 {[%clk 0:00:03.1]} 61. h4 {[%clk 0:00:59.4]} 61... Be6 {[%clk
0:00:03.2]} 62. g5 {[%clk 0:01:00.3]} 62... a3 {[%clk 0:00:03.5]} 63. gxh6+
{[%clk 0:01:01.2]} 63... Kxh6 {[%clk 0:00:03.8]} 64. Kf4 {[%clk 0:01:02.1]}
64... Kg7 {[%clk 0:00:04.7]} 65. Ke5 {[%clk 0:01:03]} 65... Bf5 {[%clk
0:00:05.6]} 66. Kd6 {[%clk 0:01:03.9]} 66... a2 {[%clk 0:00:05.9]} 67. Ke5
{[%clk 0:01:04.8]} 67... a1=Q {[%clk 0:00:05.9]} 68. Kd6 {[%clk 0:01:05.7]}
68... Rd2+ {[%clk 0:00:05.6]} 69. Kc5 {[%clk 0:01:05]} 69... Qc3+ {[%clk
0:00:05.3]} 70. Kb5 {[%clk 0:01:05]} 70... Rb2+ {[%clk 0:00:06.2]} 71. Ka4
{[%clk 0:01:05.7]} 71... Qc1 {[%clk 0:00:05.9]} 72. h5 {[%clk 0:01:05.5]} 72...
Qa1# {[%clk 0:00:06.8]} 0-1

[Event "*** SCC Grand Prix: Titled Tuesday Blitz"]
[Site "Chess.com"]
[Date "2020.08.25"]
[Round "2"]
[White "Ashedu66"]
[Black "MFBerna"]
[Result "0-1"]
[WhiteElo "2192"]
[BlackElo "2429"]
[TimeControl "180+1"]
[EndTime "10:19:46 PDT"]
[Termination "MFBerna won by resignation"]

1. d4 {[%clk 0:03:00.9]} 1... Nf6 {[%clk 0:02:59.6]} 2. Nf3 {[%clk 0:02:59.9]}
2... e6 {[%clk 0:02:58.3]} 3. c4 {[%clk 0:02:59.9]} 3... b6 {[%clk 0:02:57.7]}
4. a3 {[%clk 0:03:00]} 4... Bb7 {[%clk 0:02:58.1]} 5. Nc3 {[%clk 0:02:57.8]}
5... Be7 {[%clk 0:02:58.4]} 6. d5 {[%clk 0:02:57.1]} 6... O-O {[%clk 0:02:57.7]}
7. e4 {[%clk 0:02:57.2]} 7... d6 {[%clk 0:02:57]} 8. Bd3 {[%clk 0:02:56.3]} 8...
c6 {[%clk 0:02:56.4]} 9. dxe6 {[%clk 0:02:53.3]} 9... fxe6 {[%clk 0:02:57.3]}
10. O-O {[%clk 0:02:52.5]} 10... Nbd7 {[%clk 0:02:56.4]} 11. Ng5 {[%clk
0:02:49.2]} 11... Nc5 {[%clk 0:02:53.6]} 12. b4 {[%clk 0:02:45.8]} 12... Nxd3
{[%clk 0:02:53.6]} 13. Qxd3 {[%clk 0:02:41.1]} 13... Qd7 {[%clk 0:02:53.7]} 14.
e5 {[%clk 0:02:33.5]} 14... dxe5 {[%clk 0:02:38.3]} 15. Qxd7 {[%clk 0:02:31.3]}
15... Nxd7 {[%clk 0:02:39.2]} 16. Nxe6 {[%clk 0:02:31.3]} 16... Rf5 {[%clk
0:02:20]} 17. Rd1 {[%clk 0:02:14.8]} 17... Nf6 {[%clk 0:02:15.8]} 18. Ng5 {[%clk
0:02:07.1]} 18... a5 {[%clk 0:01:51]} 19. Be3 {[%clk 0:01:24.1]} 19... Ng4
{[%clk 0:01:28.1]} 20. Nge4 {[%clk 0:01:10.1]} 20... Nxe3 {[%clk 0:01:25.3]} 21.
fxe3 {[%clk 0:01:09.8]} 21... axb4 {[%clk 0:01:24.9]} 22. axb4 {[%clk 0:01:10]}
22... Rxa1 {[%clk 0:01:22.2]} 23. Rxa1 {[%clk 0:01:09.7]} 23... Bxb4 {[%clk
0:01:19.3]} 24. Rd1 {[%clk 0:00:54.5]} 24... Rf8 {[%clk 0:01:06.9]} 25. Rd7
{[%clk 0:00:48.4]} 25... Ba6 {[%clk 0:01:07.1]} 26. h4 {[%clk 0:00:37.4]} 26...
Bxc4 {[%clk 0:01:06]} 27. Rc7 {[%clk 0:00:32.5]} 27... Bd5 {[%clk 0:00:55]} 28.
h5 {[%clk 0:00:30.4]} 28... h6 {[%clk 0:00:46]} 29. Rb7 {[%clk 0:00:26.9]} 29...
b5 {[%clk 0:00:34.4]} 30. Nxd5 {[%clk 0:00:15.5]} 30... cxd5 {[%clk 0:00:34]}
31. Ng3 {[%clk 0:00:15.2]} 31... Be1 {[%clk 0:00:31]} 32. Ne2 {[%clk 0:00:13.8]}
32... b4 {[%clk 0:00:26.6]} 33. e4 {[%clk 0:00:12.6]} 33... dxe4 {[%clk
0:00:23.9]} 34. Nc1 {[%clk 0:00:11]} 34... e3 {[%clk 0:00:15.9]} 35. Ne2 {[%clk
0:00:09.3]} 35... Bf2+ {[%clk 0:00:11.6]} 36. Kh2 {[%clk 0:00:08.4]} 36... Be1
{[%clk 0:00:10.4]} 37. Nc1 {[%clk 0:00:07.5]} 37... Bd2 {[%clk 0:00:07.8]} 38.
Nd3 {[%clk 0:00:07.3]} 38... e2 {[%clk 0:00:06.5]} 39. Re7 {[%clk 0:00:06.2]}
39... Rd8 {[%clk 0:00:05.9]} 40. Nxe5 {[%clk 0:00:05.6]} 40... e1=Q {[%clk
0:00:05.3]} 41. Ng4 {[%clk 0:00:04.2]} 41... Bf4+ {[%clk 0:00:05]} 0-1

[Event "*** SCC Grand Prix: Titled Tuesday Blitz"]
[Site "Chess.com"]
[Date "2020.08.25"]
[Round "2"]
[White "Zq1"]
[Black "snowlord"]
[Result "1-0"]
[WhiteElo "2532"]
[BlackElo "2814"]
[TimeControl "180+1"]
[EndTime "10:19:48 PDT"]
[Termination "Zq1 won by resignation"]

1. Nf3 {[%clk 0:03:00.9]} 1... c5 {[%clk 0:02:58.9]} 2. c4 {[%clk 0:03:00.2]}
2... Nf6 {[%clk 0:02:57.1]} 3. Nc3 {[%clk 0:02:58.4]} 3... d5 {[%clk 0:02:57.3]}
4. cxd5 {[%clk 0:02:56.7]} 4... Nxd5 {[%clk 0:02:58.2]} 5. e4 {[%clk 0:02:53]}
5... Nb4 {[%clk 0:02:57.8]} 6. Bb5+ {[%clk 0:02:48.8]} 6... N8c6 {[%clk
0:02:56.3]} 7. d4 {[%clk 0:02:48]} 7... cxd4 {[%clk 0:02:55.6]} 8. a3 {[%clk
0:02:47.1]} 8... dxc3 {[%clk 0:02:55.5]} 9. Qxd8+ {[%clk 0:02:41.9]} 9... Kxd8
{[%clk 0:02:56.4]} 10. axb4 {[%clk 0:02:41.6]} 10... cxb2 {[%clk 0:02:57]} 11.
Bxb2 {[%clk 0:02:40.6]} 11... f6 {[%clk 0:02:57.7]} 12. Bxc6 {[%clk 0:02:32.1]}
12... bxc6 {[%clk 0:02:57.4]} 13. Nd4 {[%clk 0:02:20.2]} 13... Bd7 {[%clk
0:02:18.9]} 14. Ra6 {[%clk 0:02:10.6]} 14... e5 {[%clk 0:02:09.2]} 15. Nxc6+
{[%clk 0:02:05.4]} 15... Bxc6 {[%clk 0:02:02.7]} 16. Rxc6 {[%clk 0:02:05.1]}
16... Bxb4+ {[%clk 0:02:01.4]} 17. Ke2 {[%clk 0:02:05]} 17... Kd7 {[%clk
0:01:42.4]} 18. Ra6 {[%clk 0:02:03.4]} 18... Bc5 {[%clk 0:01:33.5]} 19. Rd1+
{[%clk 0:01:49.2]} 19... Ke7 {[%clk 0:01:33.7]} 20. Rd5 {[%clk 0:01:38.7]} 20...
Bb6 {[%clk 0:01:11.2]} 21. Ba3+ {[%clk 0:01:37.2]} 21... Kf7 {[%clk 0:01:08.2]}
22. Bc5 {[%clk 0:01:29.5]} 22... Rhb8 {[%clk 0:01:05.1]} 23. Rd7+ {[%clk
0:01:19.6]} 23... Kg6 {[%clk 0:01:04.7]} 24. Be3 {[%clk 0:01:02.9]} 24... h5
{[%clk 0:00:54.1]} 25. h3 {[%clk 0:01:01.4]} 25... Bxe3 {[%clk 0:00:52.8]} 26.
Kxe3 {[%clk 0:01:01]} 26... Rb3+ {[%clk 0:00:51.8]} 27. Ke2 {[%clk 0:01:00.9]}
27... Rb2+ {[%clk 0:00:50.6]} 28. Kf3 {[%clk 0:00:30.1]} 28... Rc8 {[%clk
0:00:46.8]} 29. g4 {[%clk 0:00:26.1]} 29... Rc3+ {[%clk 0:00:38.3]} 30. Kg2
{[%clk 0:00:25.5]} 30... Rcc2 {[%clk 0:00:38.7]} 31. Raxa7 {[%clk 0:00:23.2]}
31... Rxf2+ {[%clk 0:00:38.3]} 32. Kg3 {[%clk 0:00:23.1]} 32... f5 {[%clk
0:00:04.3]} 33. Rxg7+ {[%clk 0:00:18.9]} 33... Kf6 {[%clk 0:00:02.8]} 34. exf5
{[%clk 0:00:14.6]} 34... e4 {[%clk 0:00:01.4]} 35. Rg6+ {[%clk 0:00:13.5]} 35...
Ke5 {[%clk 0:00:02.3]} 36. Re6+ {[%clk 0:00:13.5]} 36... Kd4 {[%clk 0:00:03.2]}
37. Ra4+ {[%clk 0:00:13.3]} 37... Kd5 {[%clk 0:00:03.9]} 38. Raxe4 {[%clk
0:00:12.8]} 38... hxg4 {[%clk 0:00:04.8]} 39. hxg4 {[%clk 0:00:12.7]} 39... Rg2+
{[%clk 0:00:05.7]} 40. Kh4 {[%clk 0:00:12.9]} 40... Rh2+ {[%clk 0:00:05.3]} 41.
Kg5 {[%clk 0:00:12.9]} 41... Rb8 {[%clk 0:00:05.8]} 42. Re8 {[%clk 0:00:12]}
42... Rbb2 {[%clk 0:00:05]} 43. f6 {[%clk 0:00:10.8]} 43... Rbf2 {[%clk
0:00:04.9]} 44. R4e5+ {[%clk 0:00:10.8]} 44... Kd6 {[%clk 0:00:04.8]} 45. Rf5
{[%clk 0:00:10.9]} 1-0

[Event "*** SCC Grand Prix: Titled Tuesday Blitz"]
[Site "Chess.com"]
[Date "2020.08.25"]
[Round "2"]
[White "pedro_nascimento85"]
[Black "Duong57"]
[Result "0-1"]
[WhiteElo "1944"]
[BlackElo "2356"]
[TimeControl "180+1"]
[EndTime "10:19:49 PDT"]
[Termination "Duong57 won by resignation"]

1. d4 {[%clk 0:03:00.9]} 1... d5 {[%clk 0:02:58]} 2. c4 {[%clk 0:02:57.3]} 2...
e6 {[%clk 0:02:56.6]} 3. Nc3 {[%clk 0:02:56.1]} 3... c6 {[%clk 0:02:56.4]} 4. e4
{[%clk 0:02:55.3]} 4... dxe4 {[%clk 0:02:57.3]} 5. Nxe4 {[%clk 0:02:55.6]} 5...
Bb4+ {[%clk 0:02:57.8]} 6. Nc3 {[%clk 0:02:55.8]} 6... c5 {[%clk 0:02:56.3]} 7.
a3 {[%clk 0:02:47.8]} 7... Bxc3+ {[%clk 0:02:55.4]} 8. bxc3 {[%clk 0:02:47.5]}
8... Nf6 {[%clk 0:02:55.8]} 9. Nf3 {[%clk 0:02:46.4]} 9... O-O {[%clk
0:02:55.8]} 10. Bd3 {[%clk 0:02:43.6]} 10... Nbd7 {[%clk 0:02:51.8]} 11. O-O
{[%clk 0:02:42.3]} 11... b6 {[%clk 0:02:50.6]} 12. Bg5 {[%clk 0:02:40.3]} 12...
Bb7 {[%clk 0:02:50.5]} 13. Qe2 {[%clk 0:02:37.2]} 13... h6 {[%clk 0:02:49.7]}
14. Bh4 {[%clk 0:02:36.4]} 14... Qc7 {[%clk 0:02:45.7]} 15. Bg3 {[%clk 0:02:29]}
15... Qc6 {[%clk 0:02:45.8]} 16. Rfd1 {[%clk 0:02:18.5]} 16... Rfe8 {[%clk
0:02:29.7]} 17. a4 {[%clk 0:02:14.8]} 17... Nh5 {[%clk 0:02:19]} 18. a5 {[%clk
0:01:36.7]} 18... Nxg3 {[%clk 0:02:17.2]} 19. hxg3 {[%clk 0:01:36.3]} 19... Rad8
{[%clk 0:02:02.5]} 20. a6 {[%clk 0:01:34.5]} 20... Ba8 {[%clk 0:02:02.3]} 21.
Ne1 {[%clk 0:01:32.3]} 21... Nf6 {[%clk 0:01:59]} 22. Qc2 {[%clk 0:01:17.5]}
22... Kh8 {[%clk 0:01:52.6]} 23. Nf3 {[%clk 0:01:15.4]} 23... cxd4 {[%clk
0:01:52.1]} 24. cxd4 {[%clk 0:01:13.2]} 24... Rxd4 {[%clk 0:01:51.5]} 25. Be2
{[%clk 0:01:07.1]} 25... Rxd1+ {[%clk 0:01:48.6]} 26. Rxd1 {[%clk 0:01:05.7]}
26... Rc8 {[%clk 0:01:37.3]} 27. Ne1 {[%clk 0:01:01.7]} 27... e5 {[%clk
0:01:22.2]} 28. Bf3 {[%clk 0:00:41.3]} 28... e4 {[%clk 0:01:20.5]} 29. Be2
{[%clk 0:00:41.8]} 29... Qe6 {[%clk 0:01:07.4]} 30. Qd2 {[%clk 0:00:36.2]} 30...
Bc6 {[%clk 0:01:01.3]} 31. Qd6 {[%clk 0:00:33.7]} 31... Qxd6 {[%clk 0:00:59.6]}
32. Rxd6 {[%clk 0:00:32.9]} 32... Kg8 {[%clk 0:01:00.1]} 33. f3 {[%clk
0:00:32.5]} 33... Kf8 {[%clk 0:00:59.5]} 34. fxe4 {[%clk 0:00:31.7]} 34... Nxe4
{[%clk 0:00:59.4]} 35. Rd4 {[%clk 0:00:28]} 35... Nc5 {[%clk 0:00:59.4]} 36. Bf3
{[%clk 0:00:27]} 36... Nxa6 {[%clk 0:00:53.9]} 37. Rd6 {[%clk 0:00:24.6]} 37...
Bxf3 {[%clk 0:00:51.6]} 38. Nxf3 {[%clk 0:00:25.5]} 38... Ke7 {[%clk 0:00:49]}
39. Rd4 {[%clk 0:00:22.9]} 39... f6 {[%clk 0:00:49]} 40. Re4+ {[%clk 0:00:22.3]}
40... Kf7 {[%clk 0:00:49.3]} 41. Nh4 {[%clk 0:00:21.5]} 41... Nc5 {[%clk
0:00:47.4]} 42. Rd4 {[%clk 0:00:20.6]} 42... g6 {[%clk 0:00:44.6]} 43. Nf3
{[%clk 0:00:18.5]} 43... Rc7 {[%clk 0:00:42.1]} 44. Rd1 {[%clk 0:00:18.5]} 44...
Rd7 {[%clk 0:00:39.8]} 45. Ra1 {[%clk 0:00:17.7]} 45... a5 {[%clk 0:00:39.6]}
46. Rb1 {[%clk 0:00:17.2]} 46... Rd6 {[%clk 0:00:40]} 47. Kf2 {[%clk 0:00:14.4]}
47... a4 {[%clk 0:00:40.1]} 48. Ke3 {[%clk 0:00:14.5]} 48... a3 {[%clk
0:00:38.9]} 49. Nd4 {[%clk 0:00:14.4]} 49... a2 {[%clk 0:00:37.6]} 50. Ra1
{[%clk 0:00:14.7]} 50... Rxd4 {[%clk 0:00:37.9]} 51. Rxa2 {[%clk 0:00:11.9]}
51... Rxc4 {[%clk 0:00:36.8]} 52. Ra7+ {[%clk 0:00:10]} 52... Ke6 {[%clk
0:00:37]} 53. Kd2 {[%clk 0:00:09.4]} 53... b5 {[%clk 0:00:34.1]} 54. Rb7 {[%clk
0:00:08.7]} 54... b4 {[%clk 0:00:34.5]} 55. Rb8 {[%clk 0:00:07.8]} 55... b3
{[%clk 0:00:34.3]} 0-1

[Event "*** SCC Grand Prix: Titled Tuesday Blitz"]
[Site "Chess.com"]
[Date "2020.08.25"]
[Round "2"]
[White "Playgood28"]
[Black "crackcubano"]
[Result "0-1"]
[WhiteElo "2327"]
[BlackElo "2645"]
[TimeControl "180+1"]
[EndTime "10:19:51 PDT"]
[Termination "crackcubano won by resignation"]

1. d4 {[%clk 0:03:00.9]} 1... Nf6 {[%clk 0:02:14.8]} 2. c4 {[%clk 0:03:00.1]}
2... e6 {[%clk 0:02:14.6]} 3. Nc3 {[%clk 0:02:59.7]} 3... Bb4 {[%clk 0:02:14.4]}
4. Qc2 {[%clk 0:02:59.7]} 4... c5 {[%clk 0:02:13.1]} 5. dxc5 {[%clk 0:02:58.7]}
5... O-O {[%clk 0:02:12.3]} 6. a3 {[%clk 0:02:58.2]} 6... Bxc5 {[%clk
0:02:10.4]} 7. e3 {[%clk 0:02:54]} 7... b6 {[%clk 0:02:08.6]} 8. Nf3 {[%clk
0:02:52.7]} 8... Bb7 {[%clk 0:02:08.4]} 9. Be2 {[%clk 0:02:52.5]} 9... Be7
{[%clk 0:02:08.4]} 10. O-O {[%clk 0:02:51.5]} 10... d6 {[%clk 0:02:08.7]} 11. b3
{[%clk 0:02:51.1]} 11... Nbd7 {[%clk 0:02:08.8]} 12. Bb2 {[%clk 0:02:50.9]}
12... Rc8 {[%clk 0:02:07.7]} 13. Rac1 {[%clk 0:02:50.6]} 13... a6 {[%clk
0:02:07.7]} 14. Qb1 {[%clk 0:02:50]} 14... Rc7 {[%clk 0:02:07.6]} 15. Rfd1
{[%clk 0:02:49.4]} 15... Qa8 {[%clk 0:02:07.3]} 16. Ne1 {[%clk 0:02:47]} 16...
Rb8 {[%clk 0:02:05.3]} 17. Bf3 {[%clk 0:02:46.6]} 17... b5 {[%clk 0:02:01.6]}
18. Bxb7 {[%clk 0:02:43.6]} 18... Qxb7 {[%clk 0:01:57.9]} 19. cxb5 {[%clk
0:02:43]} 19... axb5 {[%clk 0:01:58.8]} 20. Nd3 {[%clk 0:02:28.1]} 20... d5
{[%clk 0:01:53.1]} 21. Na2 {[%clk 0:02:13.3]} 21... Rbc8 {[%clk 0:01:48.1]} 22.
Rxc7 {[%clk 0:02:11]} 22... Rxc7 {[%clk 0:01:49]} 23. Nab4 {[%clk 0:02:03.6]}
23... Ne4 {[%clk 0:01:47.2]} 24. Ne5 {[%clk 0:01:28.9]} 24... Ndc5 {[%clk
0:01:36.4]} 25. Bd4 {[%clk 0:01:16.3]} 25... Qc8 {[%clk 0:01:28.2]} 26. f3
{[%clk 0:01:05.9]} 26... Nf6 {[%clk 0:01:22.1]} 27. Nbd3 {[%clk 0:00:59.4]}
27... Nxd3 {[%clk 0:01:18.6]} 28. Nxd3 {[%clk 0:00:58.4]} 28... Bxa3 {[%clk
0:01:17.1]} 29. Bxf6 {[%clk 0:00:55.1]} 29... gxf6 {[%clk 0:01:16.3]} 30. Qa1
{[%clk 0:00:49.5]} 30... Be7 {[%clk 0:01:13.7]} 31. Qd4 {[%clk 0:00:48.2]} 31...
Rc2 {[%clk 0:01:10.5]} 32. Qg4+ {[%clk 0:00:42.2]} 32... Kh8 {[%clk 0:01:08]}
33. Nf4 {[%clk 0:00:40.7]} 33... Rc1 {[%clk 0:01:01.5]} 34. Rxc1 {[%clk
0:00:36.8]} 34... Qxc1+ {[%clk 0:01:02.4]} 35. Kf2 {[%clk 0:00:36.2]} 35... Bc5
{[%clk 0:00:58.8]} 36. Kg3 {[%clk 0:00:21]} 36... Qxe3 {[%clk 0:00:52.3]} 37.
Nh5 {[%clk 0:00:16.6]} 37... Qg5 {[%clk 0:00:45.7]} 38. h4 {[%clk 0:00:13.9]}
38... Bd6+ {[%clk 0:00:41.7]} 39. Kh3 {[%clk 0:00:13.4]} 39... Qxg4+ {[%clk
0:00:41.5]} 40. Kxg4 {[%clk 0:00:12.2]} 40... Be7 {[%clk 0:00:40.9]} 41. Nf4
{[%clk 0:00:10.7]} 41... Kg7 {[%clk 0:00:40.4]} 42. Nd3 {[%clk 0:00:10]} 42...
Bd6 {[%clk 0:00:39.8]} 43. h5 {[%clk 0:00:09.5]} 43... f5+ {[%clk 0:00:38.9]}
44. Kh3 {[%clk 0:00:09.4]} 44... Kf6 {[%clk 0:00:38.5]} 45. g4 {[%clk 0:00:09]}
45... fxg4+ {[%clk 0:00:38.3]} 46. Kxg4 {[%clk 0:00:08.8]} 46... e5 {[%clk
0:00:38]} 47. Nf2 {[%clk 0:00:06.2]} 47... h6 {[%clk 0:00:35.2]} 48. Nd3 {[%clk
0:00:05.7]} 48... Ke6 {[%clk 0:00:35]} 49. Nf2 {[%clk 0:00:04.9]} 49... f5+
{[%clk 0:00:35.1]} 50. Kg3 {[%clk 0:00:04.2]} 50... e4+ {[%clk 0:00:35.1]} 51.
Kg2 {[%clk 0:00:04]} 51... Ke5 {[%clk 0:00:32.6]} 52. Nxe4 {[%clk 0:00:02]}
52... dxe4 {[%clk 0:00:32.3]} 0-1

[Event "*** SCC Grand Prix: Titled Tuesday Blitz"]
[Site "Chess.com"]
[Date "2020.08.25"]
[Round "2"]
[White "Vsevolod_Ovchinnikov"]
[Black "Witik"]
[Result "1/2-1/2"]
[WhiteElo "2420"]
[BlackElo "2660"]
[TimeControl "180+1"]
[EndTime "10:19:53 PDT"]
[Termination "Game drawn by repetition"]

1. d4 {[%clk 0:03:00.9]} 1... d5 {[%clk 0:02:57.5]} 2. c4 {[%clk 0:03:01.2]}
2... e6 {[%clk 0:02:57.5]} 3. Nf3 {[%clk 0:03:01.4]} 3... c6 {[%clk 0:02:56.3]}
4. g3 {[%clk 0:02:59.5]} 4... Bd6 {[%clk 0:02:54.7]} 5. Bg2 {[%clk 0:02:59]}
5... f5 {[%clk 0:02:53.9]} 6. O-O {[%clk 0:02:58.8]} 6... Nf6 {[%clk 0:02:53.9]}
7. Qc2 {[%clk 0:02:53.2]} 7... O-O {[%clk 0:02:49.4]} 8. Nc3 {[%clk 0:02:53.7]}
8... Qe7 {[%clk 0:02:28.5]} 9. Rb1 {[%clk 0:02:52.3]} 9... Nbd7 {[%clk
0:02:25.4]} 10. a3 {[%clk 0:02:49.6]} 10... Ne4 {[%clk 0:02:23.7]} 11. b4 {[%clk
0:02:47.7]} 11... b6 {[%clk 0:02:16.2]} 12. b5 {[%clk 0:02:24.4]} 12... Nxc3
{[%clk 0:02:07.8]} 13. Qxc3 {[%clk 0:02:23.6]} 13... Bb7 {[%clk 0:02:00.2]} 14.
Bg5 {[%clk 0:01:21.6]} 14... Qe8 {[%clk 0:01:52.3]} 15. Rfc1 {[%clk 0:01:09.7]}
15... Rc8 {[%clk 0:01:50.5]} 16. cxd5 {[%clk 0:00:58.9]} 16... cxd5 {[%clk
0:01:46.8]} 17. Qb3 {[%clk 0:00:58.6]} 17... Nf6 {[%clk 0:01:25.6]} 18. Rxc8
{[%clk 0:00:55.9]} 18... Bxc8 {[%clk 0:01:19]} 19. Rc1 {[%clk 0:00:51.7]} 19...
Bd7 {[%clk 0:01:10.5]} 20. a4 {[%clk 0:00:51.8]} 20... Qb8 {[%clk 0:01:09]} 21.
Bxf6 {[%clk 0:00:25.9]} 21... gxf6 {[%clk 0:01:08.6]} 22. e3 {[%clk 0:00:20.4]}
22... Rc8 {[%clk 0:01:07.5]} 23. Rc3 {[%clk 0:00:18.3]} 23... Rc7 {[%clk
0:01:03.7]} 24. Qc2 {[%clk 0:00:17.6]} 24... Qc8 {[%clk 0:00:59.7]} 25. Rxc7
{[%clk 0:00:17.6]} 25... Qxc7 {[%clk 0:01:00.6]} 26. Qxc7 {[%clk 0:00:17.4]}
26... Bxc7 {[%clk 0:01:01.5]} 27. Bf1 {[%clk 0:00:16.5]} 27... Kf8 {[%clk
0:01:00.2]} 28. Bd3 {[%clk 0:00:16.4]} 28... Ke7 {[%clk 0:00:58.5]} 29. Bc2
{[%clk 0:00:14.4]} 29... Bd6 {[%clk 0:00:56.7]} 30. Kf1 {[%clk 0:00:14.2]} 30...
Bb4 {[%clk 0:00:56.5]} 31. Ke2 {[%clk 0:00:14.3]} 31... Kd6 {[%clk 0:00:55.5]}
32. Bb3 {[%clk 0:00:13.5]} 32... Bc8 {[%clk 0:00:53.3]} 33. Bc2 {[%clk
0:00:12.3]} 33... a6 {[%clk 0:00:52.5]} 34. Bd3 {[%clk 0:00:12.4]} 34... e5
{[%clk 0:00:44.7]} 35. Nh4 {[%clk 0:00:04.8]} 35... e4 {[%clk 0:00:43.3]} 36.
Bc2 {[%clk 0:00:05.3]} 36... axb5 {[%clk 0:00:40.9]} 37. axb5 {[%clk 0:00:06.2]}
37... Bd7 {[%clk 0:00:39.1]} 38. Ba4 {[%clk 0:00:06.7]} 38... Ke6 {[%clk
0:00:38.9]} 39. Ng2 {[%clk 0:00:06]} 39... Kd6 {[%clk 0:00:38]} 40. Nf4 {[%clk
0:00:06]} 40... Be8 {[%clk 0:00:33.8]} 41. Kf1 {[%clk 0:00:05.5]} 41... Bf7
{[%clk 0:00:28.7]} 42. Ke2 {[%clk 0:00:05.9]} 42... Be8 {[%clk 0:00:24.4]} 43.
Kf1 {[%clk 0:00:05.7]} 43... Ba5 {[%clk 0:00:17.9]} 44. Ke2 {[%clk 0:00:06]}
44... Bf7 {[%clk 0:00:16.5]} 45. Kf1 {[%clk 0:00:06.1]} 45... Bb4 {[%clk
0:00:17]} 46. Ke2 {[%clk 0:00:06.4]} 46... Ke7 {[%clk 0:00:15.1]} 47. Bb3 {[%clk
0:00:05.9]} 47... Kd6 {[%clk 0:00:14.9]} 48. Ba4 {[%clk 0:00:06.4]} 1/2-1/2